fUSD/lending_fUSD_20250506
["ID","MTS","AMOUNT","RATE_DAILY","PERIOD"]
[360032464,1746497023005,-450.0,0.00019999,2]
[360032465,1746497023026,-450.0,0.00019999,2]
[360032466,1746497023047,-450.0,0.00019999,2]
[360032467,1746497023067,-450.0,0.00019999,2]
[360032468,1746497023088,-450.0,0.00019999,2]
[360032469,1746497023110,-450.0,0.00019999,2]
[360032470,1746497023131,-450.0,0.00019999,2]
[360032471,1746497023153,-450.0,0.00019999,2]
[360032472,1746497023175,-450.0,0.00019999,2]
[360032473,1746497023197,-450.0,0.00019999,2]
[360032474,1746497023218,-450.0,0.00019999,2]
[360032475,1746497023239,-450.0,0.00019999,2]
[360032476,1746497023261,-450.0,0.00019999,2]
[360032477,1746497023283,-450.0,0.00019999,2]
[360032478,1746497023305,-450.0,0.00019999,2]
[360032479,1746497023327,-450.0,0.00019999,2]
[360032480,1746497023349,-450.0,0.00019999,2]
[360032481,1746497023372,-450.0,0.00019999,2]
[360032482,1746497023394,-450.0,0.00019999,2]
[360032483,1746497023416,-450.0,0.00019999,2]
[360032484,1746497023439,-406.60797947,0.00019999,2]
[360032485,1746497023462,-450.0,0.00019999,2]
[360032486,1746497023485,-450.0,0.00019999,2]
[360032487,1746497023507,-207.42767049,0.00019999,2]
[360032488,1746497023531,-440.13115913,0.00019999,2]
[360032489,1746497023556,-256.17272415,0.00019999,2]
[360032490,1746497023579,-450.0,0.00019999,2]
[360032491,1746497023602,-450.0,0.00019999,2]
[360032492,1746497023625,-549.94,0.00019999,2]
[360032493,1746497023648,-450.0,0.00019999,2]
[360032494,1746497023670,-450.0,0.00019999,2]
[360032495,1746497023694,-450.0,0.00019999,2]
[360032496,1746497023718,-568.14076635,0.00019999,2]
[360032497,1746497023742,-450.0,0.00019999,2]
[360032498,1746497023765,-450.0,0.00019999,2]
[360032499,1746497023790,-450.0,0.00019999,2]
[360032500,1746497023813,-450.0,0.00019999,2]
[360032501,1746497023835,-450.0,0.00019999,2]
[360032502,1746497023860,-450.0,0.00019999,2]
[360032503,1746497023885,-450.0,0.00019999,2]
[360032504,1746497023910,-450.0,0.00019999,2]
[360032505,1746497023933,-450.0,0.00019999,2]
[360032506,1746497023958,-450.0,0.00019999,2]
[360032507,1746497023982,-450.0,0.00019999,2]
[360032508,1746497024005,-218.5486573,0.00019999,2]
[360032509,1746497024027,-150.0,0.00019999,2]
[360032510,1746497024050,-516.23027957,0.00019999,2]
[360032511,1746497024074,-500.0,0.00019999,2]
[360032512,1746497024097,-450.0,0.00019999,2]
[360032513,1746497024121,-450.0,0.00019999,2]
[360032514,1746497024144,-450.0,0.00019999,2]
[360032515,1746497024166,-450.0,0.00019999,2]
[360032516,1746497024189,-450.0,0.00019999,2]
[360032517,1746497024213,-450.0,0.00019999,2]
[360032518,1746497024236,-450.0,0.00019999,2]
[360032519,1746497024259,-450.0,0.00019999,2]
[360032520,1746497024283,-450.0,0.00019999,2]
[360032521,1746497024306,-450.0,0.00019999,2]
[360032522,1746497024329,-450.0,0.00019999,2]
[360032523,1746497024353,-510.71498586,0.00019999,2]
[360032524,1746497024376,-1679.35,0.00019999,2]
[360032525,1746497024400,-1679.35,0.00019999,2]
[360032526,1746497024423,-1679.35,0.00019999,2]
[360032527,1746497024447,-1679.35,0.00019999,2]
[360032528,1746497024470,-1679.35,0.00019999,2]
[360032529,1746497024492,-1679.35,0.00019999,2]
[360032530,1746497024515,-1679.35,0.00019999,2]
[360032531,1746497024540,-1679.35,0.00019999,2]
[360032532,1746497024563,-1679.35,0.00019999,2]
[360032533,1746497024585,-1679.35,0.00019999,2]
[360032534,1746497024609,-1679.35,0.00019999,2]
[360032535,1746497024633,-1679.35,0.00019999,2]
[360032536,1746497024656,-1679.35,0.00019999,2]
[360032537,1746497024679,-1679.35,0.00019999,2]
[360032538,1746497024702,-1679.35,0.00019999,2]
[360032539,1746497024725,-1679.35,0.00019999,2]
[360032540,1746497024748,-1679.35,0.00019999,2]
[360032541,1746497024771,-1679.35,0.00019999,2]
[360032542,1746497024794,-1679.35,0.00019999,2]
[360032543,1746497024817,-1679.35,0.00019999,2]
[360032544,1746497024841,-1679.35,0.00019999,2]
[360032545,1746497024865,-1679.35,0.00019999,2]
[360032546,1746497024889,-1679.3709,0.00019999,2]
[360032547,1746497024914,-450.0,0.00019999,2]
[360032548,1746497024937,-450.0,0.00019999,2]
[360032549,1746497024961,-450.0,0.00019999,2]
[360032550,1746497024984,-243.12,0.00019999,2]
[360032551,1746497025008,-450.0,0.00019999,2]
[360032552,1746497025031,-450.0,0.00019999,2]
[360032553,1746497025054,-450.0,0.00019999,2]
[360032554,1746497025076,-450.0,0.00019999,2]
[360032555,1746497025099,-450.0,0.00019999,2]
[360032556,1746497025123,-419.35,0.00019999,2]
[360032557,1746497025144,-150.0,0.00019999,2]
[360032558,1746497025166,-500.0,0.00019999,2]
[360032559,1746497025190,-500.0,0.00019999,2]
[360032560,1746497025213,-220.59027253,0.00019999,2]
[360032561,1746497025236,-500.0,0.00019999,2]
[360032562,1746497025386,-483.90421052,0.00019999,2]
[360032563,1746497025409,-807.0,0.0002,2]
[360032564,1746497025435,-161622.16644951,0.0002,2]
[360032565,1746497025457,-375.48951744,0.0002,2]
[360032566,1746497025481,-522260.36639756,0.0002,2]
[360032567,1746497025503,-110968.50002282,0.0002,2]
[360032568,1746497025524,-916.51,0.0002,3]
[360032569,1746497025549,-12012.29417571,0.0002,2]
[360032570,1746497025572,-2849264.80920758,0.0002,2]
[360032571,1746497025594,-356763.11059394,0.0002,2]
[360032572,1746497052555,200.0,0.00019,2]
[360032574,1746497194782,272.69,0.000195,2]
[360032584,1746497342381,1000.0,0.00019037,2]
[360032600,1746497431366,-500.0,0.00019705,2]
[360032601,1746497431376,-56.17,0.00019705,2]
[360032602,1746497431526,-152.20027384,0.00019705,2]
[360032603,1746497431536,-1200.0,0.00019705,2]
[360032604,1746497431545,-88373.1010854,0.00019706,2]
[360032605,1746497431632,-277.8417361,0.00019706,2]
[360032625,1746497437398,-27133.5371785,0.00019706,2]
[360032626,1746497437408,-200.0,0.000198,2]
[360032627,1746497437418,-197.192871,0.00019852,2]
[360032628,1746497437428,-281.6721801,0.000199,2]
[360032629,1746497437438,-500.0,0.00019973,2]
[360032630,1746497437448,-61837.7110255,0.00019986,2]
[360032631,1746497437458,-4989.4690592,0.00019986,2]
[360032632,1746497437468,-884.3178027,0.00019986,2]
[360032633,1746497437478,-151.0,0.00019988,2]
[360032634,1746497437487,-151.0,0.00019988,2]
[360032635,1746497437497,-207.4,0.00019988,2]
[360032636,1746497437506,-450.0,0.00019997,2]
[360032637,1746497437516,-450.0,0.00019997,2]
[360032638,1746497437526,-450.0,0.00019997,2]
[360032639,1746497437536,-450.0,0.00019997,2]
[360032640,1746497437545,-500.0,0.00019998,2]
[360032641,1746497437555,-469.73390999,0.00019998,2]
[360032642,1746497437564,-450.0,0.00019998,2]
[360032643,1746497437575,-487.12330211,0.00019998,2]
[360032644,1746497437584,-450.0,0.00019998,2]
[360032645,1746497437594,-302.96,0.00019998,2]
[360032646,1746497437603,-505.3380047,0.00019998,2]
[360032647,1746497437613,-3911.4,0.00019998,2]
[360032648,1746497437622,-450.0,0.00019998,2]
[360032649,1746497437632,-450.0,0.00019998,2]
[360032650,1746497437642,-275.87913113,0.00019998,2]
[360032651,1746497437651,-504.41319077,0.00019998,2]
[360032652,1746497437661,-500.0,0.00019998,2]
[360032653,1746497437670,-538.73294736,0.00019998,2]
[360032654,1746497437685,-450.0,0.00019998,2]
[360032655,1746497437695,-450.0,0.00019998,2]
[360032656,1746497437704,-450.0,0.00019998,2]
[360032657,1746497437714,-515.06136359,0.00019998,2]
[360032658,1746497437723,-450.0,0.00019998,2]
[360032659,1746497437732,-500.0,0.00019998,2]
[360032660,1746497437741,-450.0,0.00019998,2]
[360032661,1746497437750,-152.00229817,0.00019998,2]
[360032662,1746497437759,-450.0,0.00019998,2]
[360032663,1746497437768,-253.71120249,0.00019998,2]
[360032664,1746497437777,-450.0,0.00019998,2]
[360032665,1746497437787,-450.0,0.00019998,2]
[360032666,1746497437796,-450.0,0.00019998,2]
[360032667,1746497437805,-450.0,0.00019998,2]
[360032668,1746497437814,-450.0,0.00019998,2]
[360032671,1746497437823,-150.0,0.00019998,2]
[360032673,1746497437832,-158.82440251,0.00019998,2]
[360032675,1746497437841,-450.0,0.00019998,2]
[360032677,1746497437850,-450.0,0.00019998,2]
[360032679,1746497437859,-461.9312492,0.00019998,2]
[360032681,1746497437869,-355.64234991,0.00019998,2]
[360032683,1746497437878,-189.01916609,0.00019998,2]
[360032685,1746497437887,-450.0,0.00019998,2]
[360032686,1746497437897,-450.0,0.00019998,2]
[360032687,1746497437907,-9169.87,0.00019998,2]
[360032688,1746497437922,-457.65167424,0.00019998,2]
[360032690,1746497437931,-450.0,0.00019998,2]
[360032692,1746497437941,-450.0,0.00019998,2]
[360032693,1746497437951,-450.0,0.00019998,2]
[360032694,1746497437963,-450.0,0.00019998,2]
[360032695,1746497437973,-450.0,0.00019998,2]
[360032696,1746497437983,-450.0,0.00019998,2]
[360032697,1746497437994,-450.0,0.00019998,2]
[360032698,1746497438006,-890.73,0.00019998,2]
[360032699,1746497438016,-450.0,0.00019998,2]
[360032700,1746497438027,-450.0,0.00019998,2]
[360032701,1746497438037,-450.0,0.00019998,2]
[360032702,1746497438047,-470.0,0.00019998,2]
[360032703,1746497438057,-594.56201471,0.00019998,2]
[360032704,1746497438066,-450.0,0.00019998,2]
[360032705,1746497438076,-474.6,0.00019998,2]
[360032706,1746497438085,-450.0,0.00019998,2]
[360032707,1746497438094,-8486.92,0.00019998,2]
[360032708,1746497438103,-8486.92,0.00019998,2]
[360032709,1746497438112,-8486.92,0.00019998,2]
[360032710,1746497438121,-450.0,0.00019998,2]
[360032711,1746497438130,-450.0,0.00019998,2]
[360032712,1746497438139,-499.45054606,0.00019998,2]
[360032713,1746497438148,-450.0,0.00019998,2]
[360032714,1746497438158,-310.32744511,0.00019999,2]
[360032715,1746497438167,-535.20749078,0.00019999,2]
[360032716,1746497438176,-56843.2,0.00019999,2]
[360032717,1746497438185,-500.0,0.00019999,2]
[360032718,1746497438195,-500.0,0.00019999,2]
[360032719,1746497438205,-500.0,0.00019999,2]
[360032720,1746497438214,-500.0,0.00019999,2]
[360032721,1746497438225,-500.0,0.00019999,2]
[360032722,1746497438235,-500.0,0.00019999,2]
[360032723,1746497438245,-3911.4,0.00019999,2]
[360032724,1746497438255,-3911.4,0.00019999,2]
[360032725,1746497438266,-3911.4,0.00019999,2]
[360032726,1746497438275,-3911.4,0.00019999,2]
[360032727,1746497438285,-3911.4,0.00019999,2]
[360032728,1746497438295,-3911.4,0.00019999,2]
[360032729,1746497438306,-3911.4,0.00019999,2]
[360032730,1746497438316,-3911.4,0.00019999,2]
[360032731,1746497438326,-3911.4,0.00019999,2]
[360032732,1746497438335,-3911.4,0.00019999,2]
[360032733,1746497438344,-3911.4,0.00019999,2]
[360032734,1746497438353,-1095.2243801,0.00019999,2]
[360032735,1746497438365,-500.31762918,0.00019999,2]
[360032736,1746497438379,-1153.45963817,0.00019999,2]
[360032737,1746497438390,-479.42759594,0.00019999,2]
[360032742,1746497439491,-2052.5,0.00019997,2]
[360032743,1746497439501,-450.0,0.00019999,2]
[360032744,1746497439510,-450.0,0.00019999,2]
[360032745,1746497439520,-450.0,0.00019999,2]
[360032746,1746497439530,-574.91375254,0.00019999,2]
[360032747,1746497439541,-571.0,0.00019999,2]
[360032748,1746497439550,-450.0,0.00019999,2]
[360032749,1746497439560,-450.0,0.00019999,2]
[360032750,1746497439569,-446.27742573,0.00019999,2]
[360032751,1746497439579,-502.57,0.00019999,2]
[360032752,1746497439589,-450.0,0.00019999,2]
[360032753,1746497439601,-245.90788639,0.00019999,2]
[360032754,1746497439612,-250.16,0.00019999,2]
[360032755,1746497439622,-450.0,0.00019999,2]
[360032756,1746497439632,-450.0,0.00019999,2]
[360032757,1746497439642,-420.32390231,0.00019999,2]
[360032758,1746497439652,-450.0,0.00019999,2]
[360032759,1746497439662,-597.54559638,0.00019999,2]
[360032760,1746497439671,-450.0,0.00019999,2]
[360032761,1746497439681,-450.0,0.00019999,2]
[360032762,1746497439690,-450.0,0.00019999,2]
[360032763,1746497439700,-489.28829418,0.00019999,2]
[360032764,1746497439710,-450.0,0.00019999,2]
[360032765,1746497439719,-450.0,0.00019999,2]
[360032766,1746497439728,-450.0,0.00019999,2]
[360032767,1746497439738,-450.0,0.00019999,2]
[360032768,1746497439747,-460.11405081,0.00019999,2]
[360032769,1746497439757,-450.0,0.00019999,2]
[360032770,1746497439767,-509.53661196,0.00019999,2]
[360032771,1746497439777,-450.0,0.00019999,2]
[360032772,1746497439786,-450.0,0.00019999,2]
[360032773,1746497439795,-545.97548474,0.00019999,2]
[360032774,1746497439805,-450.0,0.00019999,2]
[360032775,1746497439816,-450.0,0.00019999,2]
[360032776,1746497439826,-450.0,0.00019999,2]
[360032777,1746497439836,-450.0,0.00019999,2]
[360032778,1746497439845,-450.0,0.00019999,2]
[360032779,1746497439854,-450.0,0.00019999,2]
[360032780,1746497439863,-473.58334736,0.00019999,2]
[360032781,1746497439873,-450.0,0.00019999,2]
[360032782,1746497439882,-450.0,0.00019999,2]
[360032783,1746497439891,-450.0,0.00019999,2]
[360032784,1746497439901,-450.0,0.00019999,2]
[360032785,1746497439910,-450.0,0.00019999,2]
[360032786,1746497439923,-450.0,0.00019999,2]
[360032787,1746497439932,-450.0,0.00019999,2]
[360032788,1746497439941,-450.0,0.00019999,2]
[360032789,1746497439950,-450.0,0.00019999,2]
[360032790,1746497439960,-450.0,0.00019999,2]
[360032791,1746497439970,-450.0,0.00019999,2]
[360032792,1746497439980,-399.74272282,0.00019999,2]
[360032793,1746497439990,-450.0,0.00019999,2]
[360032794,1746497440000,-450.0,0.00019999,2]
[360032795,1746497440010,-450.0,0.00019999,2]
[360032796,1746497440020,-450.0,0.00019999,2]
[360032797,1746497440029,-450.0,0.00019999,2]
[360032798,1746497440038,-450.0,0.00019999,2]
[360032799,1746497440048,-450.0,0.00019999,2]
[360032800,1746497440057,-450.0,0.00019999,2]
[360032801,1746497440067,-450.0,0.00019999,2]
[360032802,1746497440076,-450.0,0.00019999,2]
[360032803,1746497440086,-450.0,0.00019999,2]
[360032804,1746497440095,-450.0,0.00019999,2]
[360032805,1746497440106,-450.0,0.00019999,2]
[360032806,1746497440116,-450.0,0.00019999,2]
[360032807,1746497440124,-450.0,0.00019999,2]
[360032808,1746497440133,-450.0,0.00019999,2]
[360032809,1746497440142,-450.0,0.00019999,2]
[360032811,1746497440304,-450.0,0.00019999,2]
[360032812,1746497440315,-450.0,0.00019999,2]
[360032813,1746497440325,-450.0,0.00019999,2]
[360032814,1746497440335,-450.0,0.00019999,2]
[360032815,1746497440344,-202.01570447,0.00019999,2]
[360032816,1746497440353,-450.0,0.00019999,2]
[360032817,1746497440362,-450.0,0.00019999,2]
[360032818,1746497440371,-450.0,0.00019999,2]
[360032819,1746497440381,-450.0,0.00019999,2]
[360032820,1746497440389,-461.74,0.00019999,2]
[360032821,1746497440398,-450.0,0.00019999,2]
[360032822,1746497440407,-450.0,0.00019999,2]
[360032823,1746497440416,-536.29874379,0.00019999,2]
[360032824,1746497440425,-477.21125576,0.00019999,2]
[360032825,1746497440434,-450.0,0.00019999,2]
[360032826,1746497440443,-176.18230561,0.00019999,2]
[360032827,1746497440452,-450.0,0.00019999,2]
[360032828,1746497440462,-450.37,0.00019999,2]
[360032829,1746497440472,-450.0,0.00019999,2]
[360032830,1746497440481,-210.20511169,0.00019999,2]
[360032831,1746497440490,-450.0,0.00019999,2]
[360032832,1746497440499,-450.0,0.00019999,2]
[360032833,1746497440508,-450.0,0.00019999,2]
[360032834,1746497440517,-450.0,0.00019999,2]
[360032835,1746497440526,-450.0,0.00019999,2]
[360032836,1746497440535,-450.0,0.00019999,2]
[360032837,1746497440544,-450.0,0.00019999,2]
[360032838,1746497440553,-450.0,0.00019999,2]
[360032839,1746497440562,-450.0,0.00019999,2]
[360032840,1746497440571,-374.94932527,0.00019999,2]
[360032841,1746497440580,-450.0,0.00019999,2]
[360032842,1746497440589,-450.0,0.00019999,2]
[360032843,1746497440597,-450.0,0.00019999,2]
[360032844,1746497440606,-450.0,0.00019999,2]
[360032845,1746497440615,-450.0,0.00019999,2]
[360032846,1746497440624,-450.0,0.00019999,2]
[360032847,1746497440633,-9169.87,0.00019999,2]
[360032848,1746497440643,-450.0,0.00019999,2]
[360032849,1746497440651,-9169.87,0.00019999,2]
[360032850,1746497440661,-450.0,0.00019999,2]
[360032851,1746497440671,-9169.87,0.00019999,2]
[360032852,1746497440680,-450.0,0.00019999,2]
[360032853,1746497440690,-9169.87,0.00019999,2]
[360032854,1746497440700,-450.0,0.00019999,2]
[360032855,1746497440709,-9169.87,0.00019999,2]
[360032856,1746497440718,-450.0,0.00019999,2]
[360032857,1746497440727,-9169.87,0.00019999,2]
[360032858,1746497440736,-450.0,0.00019999,2]
[360032859,1746497440745,-9169.87,0.00019999,2]
[360032860,1746497440754,-450.0,0.00019999,2]
[360032861,1746497440763,-9169.87,0.00019999,2]
[360032862,1746497440772,-450.0,0.00019999,2]
[360032863,1746497440781,-9169.87,0.00019999,2]
[360032864,1746497440790,-9169.87,0.00019999,2]
[360032865,1746497440799,-9169.87,0.00019999,2]
[360032866,1746497440808,-9169.87,0.00019999,2]
[360032867,1746497440817,-9169.87,0.00019999,2]
[360032868,1746497440826,-9169.87,0.00019999,2]
[360032869,1746497440837,-9169.87,0.00019999,2]
[360032870,1746497440846,-9169.87,0.00019999,2]
[360032871,1746497440855,-9169.87,0.00019999,2]
[360032872,1746497440864,-9169.87,0.00019999,2]
[360032873,1746497440873,-9169.87,0.00019999,2]
[360032874,1746497440882,-9169.87,0.00019999,2]
[360032875,1746497440892,-9169.87,0.00019999,2]
[360032876,1746497440900,-9169.87,0.00019999,2]
[360032877,1746497440911,-9169.8877,0.00019999,2]
[360032878,1746497440921,-450.0,0.00019999,2]
[360032879,1746497440930,-450.0,0.00019999,2]
[360032880,1746497440939,-450.0,0.00019999,2]
[360032881,1746497440948,-434.57839927,0.00019999,2]
[360032882,1746497440957,-450.0,0.00019999,2]
[360032883,1746497440967,-450.0,0.00019999,2]
[360032884,1746497440976,-450.0,0.00019999,2]
[360032885,1746497440986,-450.0,0.00019999,2]
[360032886,1746497440994,-450.0,0.00019999,2]
[360032887,1746497441003,-450.0,0.00019999,2]
[360032888,1746497441012,-381.80816265,0.00019999,2]
[360032889,1746497441022,-450.0,0.00019999,2]
[360032890,1746497441031,-218.62457192,0.00019999,2]
[360032891,1746497441040,-450.0,0.00019999,2]
[360032892,1746497441050,-450.0,0.00019999,2]
[360032893,1746497441059,-450.0,0.00019999,2]
[360032894,1746497441068,-450.0,0.00019999,2]
[360032895,1746497441077,-450.0,0.00019999,2]
[360032896,1746497441086,-450.0,0.00019999,2]
[360032897,1746497441096,-450.0,0.00019999,2]
[360032898,1746497441105,-450.0,0.00019999,2]
[360032899,1746497441116,-450.0,0.00019999,2]
[360032900,1746497441125,-505.96659849,0.00019999,2]
[360032901,1746497441134,-450.0,0.00019999,2]
[360032902,1746497441144,-450.0,0.00019999,2]
[360032903,1746497441153,-450.0,0.00019999,2]
[360032904,1746497441163,-450.0,0.00019999,2]
[360032905,1746497441172,-450.0,0.00019999,2]
[360032906,1746497441182,-450.0,0.00019999,2]
[360032907,1746497441192,-335.03624383,0.00019999,2]
[360032908,1746497441201,-502.36275249,0.00019999,2]
[360032909,1746497441211,-890.73,0.00019999,2]
[360032910,1746497441219,-890.73,0.00019999,2]
[360032911,1746497441229,-890.73,0.00019999,2]
[360032912,1746497441239,-890.73,0.00019999,2]
[360032913,1746497441248,-890.73,0.00019999,2]
[360032914,1746497441257,-890.73,0.00019999,2]
[360032915,1746497441266,-890.73,0.00019999,2]
[360032916,1746497441275,-890.73,0.00019999,2]
[360032917,1746497441285,-890.73,0.00019999,2]
[360032918,1746497441294,-450.0,0.00019999,2]
[360032919,1746497441303,-450.0,0.00019999,2]
[360032920,1746497441312,-232.5,0.00019999,2]
[360032921,1746497441322,-890.73,0.00019999,2]
[360032922,1746497441331,-890.73,0.00019999,2]
[360032923,1746497441350,-890.73,0.00019999,2]
[360032924,1746497441372,-890.73,0.00019999,2]
[360032925,1746497441385,-890.73,0.00019999,2]
[360032926,1746497441395,-890.73,0.00019999,2]
[360032927,1746497441405,-890.73,0.00019999,2]
[360032928,1746497441414,-890.73,0.00019999,2]
[360032929,1746497441423,-890.73,0.00019999,2]
[360032930,1746497441432,-890.73,0.00019999,2]
[360032931,1746497441441,-890.73,0.00019999,2]
[360032932,1746497441451,-890.73,0.00019999,2]
[360032933,1746497441460,-890.73,0.00019999,2]
[360032934,1746497441469,-890.86,0.00019999,2]
[360032935,1746497441478,-580.33134013,0.00019999,2]
[360032936,1746497441488,-474.6,0.00019999,2]
[360032937,1746497441497,-450.0,0.00019999,2]
[360032938,1746497441506,-474.6,0.00019999,2]
[360032939,1746497441515,-474.6,0.00019999,2]
[360032940,1746497441525,-474.6,0.00019999,2]
[360032941,1746497441534,-474.6,0.00019999,2]
[360032942,1746497441543,-474.6,0.00019999,2]
[360032943,1746497441553,-474.6,0.00019999,2]
[360032944,1746497441562,-474.6,0.00019999,2]
[360032945,1746497441571,-474.6,0.00019999,2]
[360032946,1746497441580,-474.6,0.00019999,2]
[360032947,1746497441589,-474.6,0.00019999,2]
[360032948,1746497441598,-474.6,0.00019999,2]
[360032949,1746497441608,-474.6,0.00019999,2]
[360032950,1746497441617,-474.6,0.00019999,2]
[360032951,1746497441626,-474.6,0.00019999,2]
[360032952,1746497441635,-474.6,0.00019999,2]
[360032953,1746497441645,-474.6,0.00019999,2]
[360032954,1746497441654,-474.6,0.00019999,2]
[360032955,1746497441663,-474.6,0.00019999,2]
[360032956,1746497441672,-474.6,0.00019999,2]
[360032957,1746497441682,-474.6,0.00019999,2]
[360032958,1746497441691,-474.6,0.00019999,2]
[360032959,1746497441700,-474.75,0.00019999,2]
[360032960,1746497441710,-8486.92,0.00019999,2]
[360032961,1746497441719,-8486.92,0.00019999,2]
[360032962,1746497441728,-8486.92,0.00019999,2]
[360032963,1746497441738,-8486.92,0.00019999,2]
[360032964,1746497441747,-8486.92,0.00019999,2]
[360032965,1746497441756,-8486.92,0.00019999,2]
[360032966,1746497441765,-8486.92,0.00019999,2]
[360032967,1746497441774,-8486.92,0.00019999,2]
[360032968,1746497441783,-8486.92,0.00019999,2]
[360032969,1746497441792,-8486.92,0.00019999,2]
[360032970,1746497441802,-8486.92,0.00019999,2]
[360032971,1746497441815,-8486.92,0.00019999,2]
[360032972,1746497441824,-8486.92,0.00019999,2]
[360032973,1746497441834,-8486.92,0.00019999,2]
[360032974,1746497441844,-8486.92,0.00019999,2]
[360032975,1746497441854,-8486.92,0.00019999,2]
[360032976,1746497441864,-8486.92,0.00019999,2]
[360032977,1746497441873,-8486.92,0.00019999,2]
[360032978,1746497441882,-8486.92,0.00019999,2]
[360032979,1746497441892,-8486.92,0.00019999,2]
[360032980,1746497441901,-8487.08,0.00019999,2]
[360032981,1746497441911,-482.56261821,0.00019999,2]
[360032982,1746497441926,-788.0,0.0002,2]
[360032983,1746497441936,-187.74475872,0.0002,2]
[360032984,1746497441946,-525485.0990406,0.0002,2]
[360032985,1746497441956,-332007.20889003,0.0002,2]
[360032986,1746497442131,-1056.29574353,0.00019999,2]
[360032987,1746497442143,-919.39818052,0.00019999,2]
[360032988,1746497442155,-76.80607595,0.00019999,2]
[360032990,1746497442164,-836.95771051,0.0002,2]
[360032992,1746497442175,-764.745945,0.0002,2]
[360032993,1746497442193,-265.51951488,0.0002,2]
[360032994,1746497442210,-2052.5,0.00019999,2]
[360032995,1746497442219,-3695.94960129,0.0002,2]
[360033003,1746497442527,-325.26059588,0.00019999,2]
[360033004,1746497442635,1000.0,0.000299,30]
[360033005,1746497442790,-910.2999,0.00019999,2]
[360033006,1746497442999,-358.32262035,0.00019999,2]
[360033012,1746497445341,-458.61688377,0.00019999,2]
[360033013,1746497445350,-229.46837441,0.00019999,2]
[360033014,1746497445362,-1823.03162559,0.00019999,2]
[360033015,1746497445371,-50.11724441,0.00019999,2]
[360033016,1746497445393,-2002.38275559,0.00019999,2]
[360033017,1746497445402,-2052.5,0.00019999,2]
[360033018,1746497445412,-2052.5,0.00019999,2]
[360033019,1746497445421,-454.15222674,0.00019999,2]
[360033020,1746497445432,-619.76020313,0.00019999,2]
[360033021,1746497445443,-304.95321,0.00019999,2]
[360033028,1746497449837,-6.593e-05,0.00019999,2]
[360033029,1746497449854,-289.34943401,0.00019999,2]
[360033030,1746497449866,-384.28486019,0.00019999,2]
[360033031,1746497449875,-144.04014727,0.00019999,2]
[360033032,1746497449886,-1908.45985273,0.00019999,2]
[360033033,1746497449895,-2052.5,0.00019999,2]
[360033034,1746497449904,-2052.5,0.00019999,2]
[360033035,1746497449915,-2052.5,0.00019999,2]
[360033036,1746497449926,-2052.5,0.00019999,2]
[360033037,1746497449935,-2052.5,0.00019999,2]
[360033038,1746497449946,-2052.5,0.00019999,2]
[360033039,1746497449955,-2052.5,0.00019999,2]
[360033040,1746497449967,-2052.5,0.00019999,2]
[360033041,1746497449976,-2052.5,0.00019999,2]
[360033042,1746497449985,-2052.5,0.00019999,2]
[360033043,1746497449995,-2052.5,0.00019999,2]